bitfinex/quotes_BTCUSD_20241011
["timestamp","ask_amount","ask_price","bid_price","bid_amount"]
[1728615005032,0.001817,60521.0,60520.0,0.78615657]
[1728615005280,0.001817,60521.0,60520.0,0.61952978]
[1728615005500,0.05123037,60533.0,60520.0,0.61952978]
[1728615005501,0.001632,60533.0,60532.0,0.148681]
[1728615005948,0.01451102,60533.0,60532.0,0.17341794]
[1728615006165,0.01451102,60533.0,60532.0,0.148681]
[1728615006166,0.001632,60533.0,60532.0,0.148681]
[1728615006877,0.005632,60533.0,60532.0,0.149681]
[1728615007307,0.005632,60533.0,60532.0,0.16513218]
[1728615008192,0.005632,60533.0,60532.0,0.16613218]
[1728615008431,0.001632,60533.0,60532.0,0.16513218]
[1728615008677,0.003632,60533.0,60532.0,0.16413218]
[1728615008913,0.001632,60533.0,60532.0,0.16513218]
[1728615009168,0.003632,60533.0,60532.0,0.16513218]
[1728615009679,0.003632,60533.0,60532.0,0.149681]
[1728615009913,0.003632,60533.0,60532.0,0.16512024]
[1728615014230,0.003632,60533.0,60532.0,0.16412024]
[1728615014716,0.003632,60533.0,60532.0,0.16912024]
[1728615014948,0.001632,60533.0,60532.0,0.16912024]
[1728615015192,0.001632,60533.0,60532.0,0.50612954]
[1728615015431,0.001632,60533.0,60532.0,0.51112954]
[1728615015674,0.001632,60533.0,60532.0,0.51612954]
[1728615016187,0.001632,60533.0,60532.0,0.5006903]
[1728615016404,0.001632,60533.0,60532.0,0.61544112]
[1728615018922,0.001632,60533.0,60532.0,0.51611305]
[1728615019404,0.001632,60533.0,60532.0,0.51610683]
[1728615022740,0.001632,60533.0,60532.0,0.5006903]
[1728615022948,0.001632,60533.0,60532.0,0.51610544]
[1728615023815,0.244911,60533.0,60532.0,0.014]
[1728615024257,0.25785433,60533.0,60532.0,0.014]
[1728615024895,0.25785433,60533.0,60529.0,0.148688]
[1728615025115,0.25785433,60533.0,60528.0,0.24752679]
[1728615025116,0.11117533,60533.0,60528.0,0.24752679]
[1728615025327,0.11117533,60533.0,60529.0,0.148687]
[1728615025547,0.10917533,60533.0,60529.0,0.148687]
[1728615025759,0.11217533,60533.0,60528.0,0.24752679]
[1728615025962,0.10917533,60533.0,60528.0,0.24752679]
[1728615026201,0.10917533,60533.0,60529.0,0.148687]
[1728615026430,0.10917533,60533.0,60528.0,0.24852679]
[1728615026642,0.10917533,60533.0,60529.0,0.148687]
[1728615026857,0.148683,60532.0,60529.0,0.148689]
[1728615027076,0.26148735,60531.0,60528.0,0.001]
[1728615027303,0.01347428,60531.0,60529.0,0.148688]
[1728615027543,0.244912,60533.0,60529.0,0.148688]
[1728615027775,0.0134734,60530.0,60529.0,0.148688]
[1728615027983,0.244912,60533.0,60529.0,0.148688]
[1728615028198,0.01347068,60530.0,60529.0,0.148688]
[1728615028407,0.244912,60533.0,60529.0,0.148688]
[1728615028623,0.0134734,60530.0,60529.0,0.148688]
[1728615029113,0.244912,60533.0,60529.0,0.148688]
[1728615029346,0.01344391,60532.0,60529.0,0.148688]
[1728615029818,0.16212591,60532.0,60528.0,0.14869]
[1728615030050,0.16212591,60532.0,60527.0,0.297387]
[1728615030295,0.16212591,60532.0,60529.0,0.148688]
[1728615030522,0.16212591,60532.0,60529.0,0.153688]
[1728615030983,0.01344391,60532.0,60529.0,0.153688]
[1728615032854,0.01344391,60532.0,60530.0,0.148686]
[1728615034115,0.01344391,60532.0,60530.0,0.152686]
[1728615034832,0.01444391,60532.0,60530.0,0.004]
[1728615035559,0.09932807,60531.0,60530.0,0.004]
[1728615036035,0.11277275,60531.0,60530.0,0.004]
[1728615036719,0.11277275,60531.0,60529.0,0.148688]
[1728615036937,0.11277275,60531.0,60530.0,0.004]
[1728615037421,0.11377275,60531.0,60530.0,0.004]
[1728615037665,0.11377275,60531.0,60529.0,0.148688]
[1728615037905,0.11377275,60531.0,60529.0,0.153688]
[1728615038367,0.11377275,60531.0,60529.0,0.148688]
[1728615038824,0.11277275,60531.0,60529.0,0.148688]
[1728615040539,0.11277275,60531.0,60530.0,0.004]
[1728615040756,0.11277275,60531.0,60529.0,0.148688]
[1728615041228,0.11277275,60531.0,60529.0,0.153688]
[1728615046579,0.26145675,60531.0,60529.0,0.005]
[1728615046812,0.11277275,60531.0,60529.0,0.005]
[1728615049642,0.148686,60530.0,60529.0,0.005]
[1728615050086,0.1618848,60530.0,60529.0,0.005]
[1728615050527,0.0131988,60530.0,60523.0,0.148702]
[1728615050749,0.09932807,60527.0,60524.0,0.16414576]
[1728615050984,0.09932807,60527.0,60525.0,0.01544476]
[1728615051204,0.0131972,60526.0,60524.0,0.148701]
[1728615051436,0.0131972,60526.0,60525.0,0.0154487]
[1728615052370,0.0131972,60526.0,60525.0,0.1641467]
[1728615052829,0.09932807,60530.0,60525.0,0.1641467]
[1728615052830,0.24801507,60530.0,60525.0,0.1641467]
[1728615053113,0.24801507,60530.0,60526.0,0.1641427]
[1728615053342,0.01319425,60529.0,60527.0,0.0154487]
[1728615053574,0.01319425,60529.0,60528.0,0.0154487]
[1728615054032,0.16188325,60529.0,60524.0,0.1507]
[1728615054287,0.16188325,60529.0,60528.0,0.01546084]
[1728615054521,0.148692,60528.0,60525.0,0.006]
[1728615054766,0.148692,60528.0,60523.0,0.297407]
[1728615054767,0.03089002,60544.0,60543.0,0.148654]
[1728615055023,0.001634,60546.0,60545.0,0.258649]
[1728615055272,0.001634,60546.0,60545.0,0.4684187]
[1728615055739,0.001634,60546.0,60545.0,0.66136052]
[1728615056197,0.001634,60546.0,60545.0,0.5629187]
[1728615057371,0.001634,60546.0,60545.0,0.59082239]
[1728615059658,0.001634,60546.0,60545.0,0.57682239]
[1728615060310,0.001634,60546.0,60545.0,0.59082239]
[1728615060536,0.001634,60546.0,60545.0,0.5734583]
[1728615060780,0.001634,60546.0,60545.0,0.56077838]
[1728615060995,0.001634,60546.0,60545.0,0.57477838]
[1728615061455,0.001634,60546.0,60545.0,0.58877838]
[1728615061694,0.0084817,60559.0,60552.0,0.005]
[1728615061945,0.24774756,60571.0,60570.0,0.181588]
[1728615062191,0.24774756,60571.0,60570.0,0.46621738]
[1728615062448,0.000817,60572.0,60571.0,0.281585]
[1728615062661,1e-06,60572.0,60571.0,0.30220623]
[1728615062912,1e-06,60572.0,60571.0,0.66354229]
[1728615063195,0.0002,60579.0,60578.0,0.278568]
[1728615063457,0.24856456,60607.0,60581.0,0.37788907]
[1728615063458,0.24774756,60586.0,60581.0,0.37788907]
[1728615063689,0.24856456,60593.0,60581.0,0.54719837]
[1728615063907,0.24856456,60593.0,60581.0,0.64652644]
[1728615064358,0.24856456,60593.0,60581.0,0.4228703]
[1728615064598,0.24856456,60593.0,60581.0,0.57362023]
[1728615065065,0.000817,60593.0,60581.0,0.58762023]
[1728615065298,0.000817,60593.0,60581.0,0.61762023]
[1728615066227,0.000817,60593.0,60581.0,0.60362023]
[1728615066459,0.000817,60593.0,60581.0,0.60162023]
[1728615066702,0.000817,60593.0,60581.0,0.62962023]
[1728615066915,0.000817,60593.0,60581.0,0.61562023]
[1728615067616,0.000817,60593.0,60581.0,0.63162023]
[1728615069152,0.000817,60593.0,60581.0,0.61762023]
[1728615069612,0.000817,60593.0,60581.0,0.63162023]
[1728615069858,0.000817,60593.0,60581.0,0.60362023]
[1728615070084,0.000817,60593.0,60581.0,0.61762023]
[1728615070314,0.000817,60593.0,60581.0,0.63162023]
[1728615070775,0.000817,60593.0,60581.0,0.61762023]
[1728615071239,0.000817,60593.0,60581.0,0.63162023]
[1728615071963,0.000817,60593.0,60591.0,0.253536]
[1728615072245,0.000817,60593.0,60591.0,0.4228453]
[1728615073240,0.000817,60593.0,60591.0,0.58759523]
[1728615074151,0.000817,60593.0,60591.0,0.60819723]
[1728615074611,0.000817,60593.0,60591.0,0.59419723]
[1728615074877,0.000817,60593.0,60591.0,0.60819723]
[1728615075817,0.000817,60593.0,60591.0,0.59419723]
[1728615076273,0.000817,60593.0,60591.0,0.4574473]
[1728615076730,0.000817,60593.0,60591.0,0.4508453]
[1728615077179,0.000817,60593.0,60591.0,0.4368453]
[1728615077413,0.000817,60593.0,60591.0,0.1693093]
[1728615077414,0.01309089,60592.0,60591.0,0.1693093]
[1728615077634,0.01309089,60592.0,60591.0,0.1833093]
[1728615077873,0.01309089,60592.0,60591.0,0.3458453]
[1728615078094,0.01309089,60592.0,60591.0,0.3318453]
[1728615079017,0.01309089,60592.0,60591.0,0.3178453]
[1728615079256,0.01309089,60592.0,60591.0,0.3268453]
[1728615079487,0.000817,60592.0,60591.0,0.3318453]
[1728615079715,0.01308243,60592.0,60591.0,0.3318453]
[1728615079921,0.01308243,60592.0,60591.0,0.3238453]
[1728615080218,0.01308243,60592.0,60591.0,0.3288453]
[1728615080459,0.01308243,60592.0,60591.0,0.3378453]
[1728615080686,0.01308243,60592.0,60591.0,0.3268453]
[1728615080929,0.000817,60592.0,60591.0,0.3408453]
[1728615083021,0.01307393,60592.0,60591.0,0.3408453]
[1728615083711,0.000817,60592.0,60591.0,0.3408453]
[1728615087737,0.000817,60592.0,60591.0,0.3458453]
[1728615089668,0.000817,60593.0,60591.0,0.1973093]
[1728615089900,0.000817,60593.0,60592.0,0.3178433]
[1728615092686,0.000817,60593.0,60592.0,0.3438433]
[1728615093606,0.000817,60593.0,60592.0,0.4438433]
[1728615103610,0.000817,60593.0,60592.0,0.49275616]
[1728615104549,0.0813,60599.0,60597.0,0.148521]
[1728615104992,0.01223426,60598.0,60596.0,0.148522]
[1728615105219,0.01223426,60598.0,60596.0,0.3178333]
[1728615105939,0.01223426,60598.0,60597.0,0.148522]
[1728615107339,0.01223426,60598.0,60597.0,0.155522]
[1728615108035,0.01223426,60598.0,60597.0,0.45211347]
[1728615108270,0.0813,60599.0,60598.0,0.148519]
[1728615108495,0.0813,60599.0,60598.0,0.440839]
[1728615108721,0.0813,60599.0,60598.0,0.3178283]
[1728615109650,0.0813,60599.0,60598.0,0.42323648]
[1728615110088,0.0813,60599.0,60598.0,0.42523648]
[1728615110550,0.0813,60599.0,60598.0,0.40063266]
[1728615111083,0.0002,60599.0,60598.0,0.77798404]
[1728615111311,0.0002,60599.0,60598.0,0.55483852]
[1728615111532,0.0002,60599.0,60598.0,0.4318283]
[1728615111749,0.0002,60599.0,60598.0,0.55483852]
[1728615111965,0.0002,60599.0,60598.0,0.54783852]
[1728615112445,0.0002,60599.0,60598.0,0.4358283]
[1728615112670,0.0002,60599.0,60598.0,0.53222787]
[1728615112909,0.0002,60599.0,60598.0,0.52822787]
[1728615113130,0.0002,60599.0,60598.0,0.53522787]
[1728615113351,0.0002,60599.0,60598.0,0.54622787]
[1728615113601,0.0002,60599.0,60598.0,0.52163087]
[1728615114066,0.0002,60599.0,60598.0,0.4478283]
[1728615114519,0.0002,60599.0,60598.0,0.54623876]
[1728615114719,0.0002,60599.0,60598.0,0.4478283]
[1728615115460,0.0002,60599.0,60598.0,0.57077949]
[1728615115703,0.0002,60599.0,60598.0,0.4478283]
[1728615116417,0.0002,60599.0,60598.0,0.4708283]
[1728615116650,0.0002,60599.0,60598.0,0.5655283]
[1728615116845,0.0002,60599.0,60598.0,0.6420283]
[1728615117102,0.001016,60599.0,60598.0,0.6440283]
[1728615117330,0.001016,60599.0,60598.0,0.6420283]
[1728615118494,0.001016,60599.0,60598.0,0.6440283]
[1728615119396,0.001016,60599.0,60598.0,0.6420283]
[1728615120082,0.001016,60599.0,60598.0,0.6440283]
[1728615120713,0.001016,60599.0,60598.0,0.6420283]
[1728615120931,0.001016,60599.0,60598.0,0.6490283]
[1728615121393,0.000817,60607.0,60606.0,0.005]
[1728615121616,0.000817,60607.0,60606.0,0.57355923]
[1728615121837,0.01316071,60607.0,60606.0,0.57355923]
[1728615122060,0.000817,60607.0,60606.0,0.62266366]
[1728615122323,0.000817,60607.0,60606.0,0.57355923]
[1728615122541,0.000817,60607.0,60606.0,0.64566366]
[1728615122769,0.000817,60607.0,60606.0,0.59655923]
[1728615122985,0.000817,60607.0,60606.0,0.67022061]
[1728615123210,0.000817,60607.0,60606.0,0.68022061]
[1728615123431,0.000817,60607.0,60606.0,0.66163876]
[1728615123916,0.000817,60607.0,60606.0,0.65563876]
[1728615124598,0.000817,60607.0,60606.0,0.64563876]
[1728615124815,0.000817,60607.0,60606.0,0.65963876]
[1728615125255,0.000817,60607.0,60606.0,0.61055923]
[1728615125479,0.000817,60607.0,60606.0,0.62255923]
[1728615126878,0.000817,60607.0,60606.0,0.61055923]
[1728615127322,0.000817,60607.0,60606.0,0.62455923]
[1728615127538,0.000817,60607.0,60606.0,0.61055923]
[1728615127755,0.000817,60607.0,60606.0,0.62227688]
[1728615127974,0.000817,60607.0,60606.0,0.63627688]
[1728615129162,0.00245887,60614.0,60606.0,0.63627688]
[1728615129163,0.00245887,60614.0,60613.0,0.276482]
[1728615129388,0.00245887,60614.0,60613.0,0.70025554]
[1728615129610,0.00245887,60614.0,60613.0,0.62872329]
[1728615130383,0.0794,60633.0,60613.0,0.62872329]
[1728615130384,0.0002,60639.0,60638.0,0.221321]
[1728615130617,0.0002,60639.0,60638.0,0.49507093]
[1728615130841,0.01059833,60639.0,60638.0,0.40417093]
[1728615131074,0.01059833,60639.0,60638.0,0.42717093]
[1728615131075,0.0002,60639.0,60638.0,0.42717093]
[1728615131587,0.0002,60639.0,60638.0,0.1]
[1728615131588,0.0791,60639.0,60638.0,0.1]
[1728615131840,0.327219,60639.0,60638.0,0.014]
[1728615132072,0.33773821,60639.0,60638.0,0.014]
[1728615132304,0.18931921,60639.0,60634.0,0.1]
[1728615132561,0.148424,60637.0,60634.0,0.1]
[1728615132795,0.18931921,60639.0,60636.0,0.1]
[1728615133048,0.148432,60634.0,60629.0,0.153441]
[1728615133319,0.148432,60634.0,60628.0,0.1]
[1728615133320,0.148438,60631.0,60630.0,0.1]
[1728615133568,0.08774132,60633.0,60630.0,0.248441]
[1728615133830,0.08774132,60633.0,60632.0,0.1]
[1728615133831,0.225534,60633.0,60632.0,0.1]
[1728615134084,0.225534,60633.0,60632.0,0.2693093]
[1728615135064,0.225534,60633.0,60632.0,0.2813093]
[1728615135298,0.0771,60633.0,60632.0,0.4347453]
[1728615135545,0.0771,60633.0,60632.0,0.4227453]
[1728615135776,0.0771,60633.0,60632.0,0.2803093]
[1728615136007,0.0771,60633.0,60632.0,0.2903093]
[1728615136248,0.0771,60633.0,60632.0,0.2793093]
[1728615136526,0.0002,60639.0,60638.0,0.148421]
[1728615136766,0.0002,60639.0,60638.0,0.46848023]
[1728615137730,0.0002,60639.0,60638.0,0.3177303]
[1728615138441,0.0002,60639.0,60638.0,0.3217303]
[1728615138873,0.0012,60639.0,60638.0,0.3267303]
[1728615139118,0.0012,60639.0,60638.0,0.3217303]
[1728615139366,0.0012,60639.0,60638.0,0.4267303]
[1728615141809,0.002017,60639.0,60638.0,0.4267303]
[1728615142525,0.002017,60639.0,60638.0,0.2733093]
[1728615142526,0.150436,60639.0,60638.0,0.2733093]
[1728615142815,0.002017,60639.0,60638.0,0.1733093]
[1728615143051,0.16106748,60639.0,60638.0,0.1733093]
[1728615143286,0.16106748,60639.0,60638.0,0.004]
[1728615143524,0.296851,60637.0,60635.0,0.1]
[1728615143769,0.30948748,60639.0,60638.0,0.013]
[1728615143961,0.447275,60639.0,60638.0,0.013]
[1728615144183,0.001017,60639.0,60638.0,0.013]
[1728615144404,0.001017,60639.0,60638.0,0.3177303]
[1728615144627,0.001017,60639.0,60638.0,0.3217303]
[1728615144845,0.001017,60639.0,60638.0,0.3257303]
[1728615145061,0.001017,60639.0,60638.0,0.3278303]
[1728615145321,0.001017,60639.0,60638.0,0.3198303]
[1728615145537,0.001017,60639.0,60638.0,0.3298303]
[1728615145798,0.322636,60639.0,60638.0,0.1854093]
[1728615146021,0.322636,60639.0,60638.0,0.0121]
[1728615146483,0.33381141,60639.0,60638.0,0.0121]
[1728615146913,0.33381141,60639.0,60638.0,0.0101]
[1728615147355,0.33381141,60639.0,60638.0,0.0231]
[1728615147794,0.33381141,60639.0,60638.0,0.0101]
[1728615148009,0.33381141,60639.0,60638.0,0.0071]
[1728615148450,0.33381141,60639.0,60638.0,0.0021]
[1728615148687,0.33381141,60639.0,60638.0,0.0001]
[1728615148913,0.33381141,60639.0,60638.0,0.0091]
[1728615151173,0.33381141,60639.0,60638.0,0.0071]
[1728615151604,0.33381141,60639.0,60638.0,0.0091]
[1728615151906,0.33381141,60639.0,60638.0,0.0001]
[1728615152120,0.33381141,60639.0,60638.0,0.0011]
[1728615153227,0.33381141,60639.0,60638.0,0.0081]
[1728615153654,0.33381141,60639.0,60638.0,0.0011]
[1728615153889,0.33381141,60639.0,60638.0,0.0071]
[1728615154351,0.33381141,60639.0,60638.0,0.0001]
[1728615154637,0.33381141,60639.0,60638.0,0.0011]
[1728615154638,0.38272389,60639.0,60638.0,0.0011]
[1728615154879,0.38472389,60639.0,60638.0,0.0031]
[1728615155118,0.38472389,60639.0,60638.0,0.0021]
[1728615155369,0.33581141,60639.0,60638.0,0.0021]
[1728615155614,0.33681141,60639.0,60638.0,0.0021]
[1728615155852,0.33681141,60639.0,60627.0,0.24774756]
[1728615155853,0.0785,60638.0,60627.0,0.24774756]
[1728615156111,0.47829593,60628.0,60627.0,0.24774756]
[1728615156578,0.148463,60621.0,60620.0,0.001634]
[1728615156821,0.230663,60621.0,60620.0,0.001634]
[1728615157070,0.33860327,60621.0,60620.0,0.001634]
[1728615157819,0.33860327,60621.0,60620.0,0.010634]
[1728615159255,0.33860327,60621.0,60620.0,0.001634]
[1728615159535,0.33960327,60621.0,60620.0,0.001634]
[1728615159788,0.33860327,60621.0,60620.0,0.006634]
[1728615160045,0.33960327,60621.0,60620.0,0.001634]
[1728615160500,0.33960327,60621.0,60620.0,0.005634]
[1728615161005,0.33960327,60621.0,60620.0,0.001634]
[1728615161243,0.33860327,60621.0,60620.0,0.002634]
[1728615161476,0.33960327,60621.0,60620.0,0.002634]
[1728615161954,0.33860327,60621.0,60620.0,0.002634]
[1728615162254,0.33960327,60621.0,60620.0,0.002634]
[1728615162515,0.33860327,60621.0,60620.0,0.001634]
[1728615162783,0.33960327,60621.0,60620.0,0.001634]
[1728615163017,0.33860327,60621.0,60620.0,0.001634]
[1728615163710,0.50791257,60621.0,60620.0,0.001634]
[1728615163957,0.64843651,60621.0,60620.0,0.001634]
[1728615164214,0.65043651,60621.0,60620.0,0.001634]
[1728615164449,0.65143651,60621.0,60620.0,0.002634]
[1728615164673,0.65043651,60621.0,60620.0,0.001634]
[1728615164903,0.65043651,60621.0,60620.0,0.002634]
[1728615164904,0.65143651,60621.0,60620.0,0.002634]
[1728615165138,0.65043651,60621.0,60620.0,0.001634]
[1728615165368,0.65143651,60621.0,60620.0,0.002634]
[1728615165605,0.64943651,60621.0,60620.0,0.002634]
[1728615165849,0.65143651,60621.0,60620.0,0.002634]
[1728615166092,0.65343651,60621.0,60620.0,0.002634]
[1728615166331,0.65143651,60621.0,60620.0,0.002634]
[1728615166561,0.65343651,60621.0,60620.0,0.003634]
[1728615166790,0.67643651,60621.0,60620.0,0.003634]
[1728615167063,0.0922,60612.0,60605.0,0.24774756]
[1728615167343,0.296948,60617.0,60605.0,0.24774756]
[1728615167344,0.47744993,60606.0,60605.0,0.24774756]
[1728615167589,0.62819986,60606.0,60605.0,0.24774756]
[1728615167830,0.63894346,60606.0,60605.0,0.24774756]
[1728615168090,0.148513,60601.0,60599.0,0.001632]
[1728615168339,0.29926393,60600.0,60599.0,0.001632]
[1728615168561,0.30999874,60600.0,60599.0,0.001632]
[1728615169722,0.31099874,60600.0,60599.0,0.009632]
[1728615170701,0.31099874,60600.0,60599.0,0.012632]
[1728615171175,0.38729874,60600.0,60599.0,0.012632]
[1728615171895,0.38629874,60600.0,60599.0,0.004632]
[1728615172138,0.38629874,60600.0,60599.0,0.006632]
[1728615172632,0.38629874,60600.0,60599.0,0.001632]
[1728615173089,0.38629874,60600.0,60599.0,0.003632]
[1728615174024,0.38829874,60600.0,60599.0,0.003632]
[1728615178789,0.48599874,60600.0,60599.0,0.003632]
[1728615180942,0.33524881,60600.0,60599.0,0.003632]
[1728615182064,0.33524881,60600.0,60599.0,0.001632]
[1728615182590,0.33624881,60600.0,60599.0,0.007632]
[1728615183083,0.33524881,60600.0,60599.0,0.001632]
[1728615183363,0.33424881,60600.0,60599.0,0.009632]
[1728615183609,0.33424881,60600.0,60599.0,0.013632]
[1728615183856,0.01173481,60600.0,60599.0,0.158149]
[1728615184310,0.001,60600.0,60599.0,0.159149]
[1728615184537,0.0805,60606.0,60599.0,0.002632]
[1728615184758,0.0805,60606.0,60603.0,0.148505]
[1728615185241,0.0805,60606.0,60603.0,0.148506]
[1728615185715,0.0815,60606.0,60603.0,0.148506]
[1728615186179,0.0805,60606.0,60601.0,0.297021]
[1728615186410,0.0805,60606.0,60602.0,0.148508]
[1728615186411,0.229001,60606.0,60602.0,0.148508]
[1728615186641,0.230001,60606.0,60603.0,0.008]
[1728615186868,0.0815,60606.0,60603.0,0.160506]
[1728615187086,0.0815,60606.0,60603.0,0.156506]
[1728615187307,0.001,60606.0,60603.0,0.156506]
[1728615187547,0.002,60606.0,60604.0,0.148504]
[1728615187954,0.148497,60607.0,60604.0,0.148504]
[1728615187955,0.148497,60607.0,60601.0,0.297021]
[1728615188155,0.1495,60606.0,60603.0,0.152505]
[1728615188595,0.1485,60606.0,60603.0,0.148505]
[1728615188762,0.1485,60606.0,60601.0,0.297021]
[1728615188763,0.1485,60606.0,60604.0,0.007]
[1728615188964,0.001,60606.0,60604.0,0.007]
[1728615189373,0.148498,60607.0,60603.0,0.15014]
[1728615189715,0.001,60606.0,60603.0,0.15814]
[1728615190674,0.001,60606.0,60604.0,0.002]
[1728615191043,0.15074993,60608.0,60604.0,0.002]
[1728615191044,0.148497,60607.0,60604.0,0.002]
[1728615191264,0.001,60606.0,60604.0,0.007]
[1728615191482,0.01167621,60606.0,60604.0,0.007]
[1728615191659,0.16017721,60606.0,60604.0,0.007]
[1728615191881,0.148505,60604.0,60603.0,0.001634]
[1728615192295,0.15918607,60604.0,60603.0,0.001634]
[1728615192513,0.24198607,60604.0,60603.0,0.001634]
[1728615192726,0.29261939,60604.0,60603.0,0.001634]
[1728615192952,0.38471939,60604.0,60603.0,0.001634]
[1728615193190,0.38671939,60604.0,60603.0,0.001634]
[1728615194062,0.55602869,60604.0,60603.0,0.001634]
[1728615194534,0.55502869,60604.0,60603.0,0.009634]
[1728615194963,0.55402869,60604.0,60603.0,0.001634]
[1728615195186,0.56402869,60604.0,60603.0,0.002634]
[1728615195425,0.56102869,60604.0,60603.0,0.002634]
[1728615195871,0.55402869,60604.0,60603.0,0.001634]
[1728615196208,0.56002869,60604.0,60603.0,0.002634]
[1728615196410,0.50939537,60604.0,60603.0,0.002634]
[1728615196820,0.52039537,60604.0,60603.0,0.003634]
[1728615197675,0.51439537,60604.0,60603.0,0.002634]
[1728615198037,0.50339537,60604.0,60603.0,0.001634]
[1728615198325,0.50339537,60604.0,60603.0,0.003634]
[1728615198326,0.52139537,60604.0,60603.0,0.003634]
[1728615198818,0.51439537,60604.0,60603.0,0.002634]
[1728615199051,0.52239537,60604.0,60603.0,0.003634]
[1728615199506,0.69183807,60604.0,60603.0,0.003634]
[1728615202035,0.68983807,60604.0,60603.0,0.003634]
[1728615202726,0.69183807,60604.0,60603.0,0.003634]
[1728615204123,0.68983807,60604.0,60603.0,0.003634]
[1728615205032,0.69183807,60604.0,60603.0,0.003634]
[1728615206705,0.69183807,60604.0,60599.0,0.001632]
[1728615206706,0.322614,60600.0,60599.0,0.001632]
[1728615206933,0.64267323,60600.0,60599.0,0.001632]
[1728615207150,0.65321164,60600.0,60599.0,0.001632]
[1728615208040,0.66221164,60600.0,60599.0,0.002632]
[1728615209173,0.66021164,60600.0,60599.0,0.002632]
[1728615209390,0.80037632,60600.0,60599.0,0.001632]
[1728615209849,0.80737632,60600.0,60599.0,0.002632]
[1728615210074,0.80037632,60600.0,60599.0,0.001632]
[1728615210334,0.86077585,60600.0,60599.0,0.002632]
[1728615210550,0.81337632,60600.0,60599.0,0.002632]
[1728615210985,0.81137632,60600.0,60599.0,0.002632]
[1728615211442,0.86577585,60600.0,60599.0,0.002632]
[1728615212868,0.8775593,60600.0,60599.0,0.002632]
[1728615213551,0.82815977,60600.0,60599.0,0.002632]
[1728615214261,0.8775593,60600.0,60599.0,0.002632]
[1728615214481,0.82815977,60600.0,60599.0,0.002632]
[1728615214928,0.85315977,60600.0,60599.0,0.002632]
[1728615216082,0.85115977,60600.0,60599.0,0.002632]
[1728615216531,0.85315977,60600.0,60599.0,0.002632]
[1728615216770,0.85115977,60600.0,60599.0,0.002632]
[1728615223607,0.93515977,60600.0,60599.0,0.001632]
[1728615223884,0.93515977,60600.0,60599.0,0.003632]
[1728615223885,0.95715977,60600.0,60599.0,0.003632]
[1728615224358,0.94915977,60600.0,60599.0,0.002632]
[1728615224552,0.95915977,60600.0,60599.0,0.003632]
[1728615224936,0.148556,60583.0,60573.0,0.24774756]
[1728615225144,0.37830593,60583.0,60573.0,0.24774756]
[1728615225353,0.38880039,60583.0,60573.0,0.24774756]
[1728615225561,0.38880039,60583.0,60582.0,0.001632]
[1728615226593,0.38980039,60583.0,60582.0,0.001632]
[1728615226799,0.71204502,60583.0,60582.0,0.001632]
[1728615227009,0.71304502,60583.0,60582.0,0.001632]
[1728615227217,0.80104502,60583.0,60582.0,0.001632]
[1728615227445,0.82404502,60583.0,60582.0,0.001632]
[1728615227651,0.82804502,60583.0,60582.0,0.001632]
[1728615227852,0.82404502,60583.0,60582.0,0.001632]
[1728615228260,0.82504502,60583.0,60582.0,0.001632]
[1728615229320,0.83404502,60583.0,60582.0,0.001632]
[1728615229545,0.82504502,60583.0,60582.0,0.001632]
[1728615229987,0.83604502,60583.0,60582.0,0.001632]
[1728615230204,0.83604502,60583.0,60574.0,0.24774756]
[1728615230205,0.148576,60575.0,60574.0,0.24774756]
[1728615230440,0.47988377,60575.0,60574.0,0.24774756]
[1728615230662,0.148595,60567.0,60566.0,0.24774756]
[1728615230899,0.29934493,60567.0,60566.0,0.24774756]
[1728615231131,0.30970632,60567.0,60566.0,0.24774756]
[1728615231373,0.148612,60560.0,60559.0,0.001634]
[1728615231598,0.30972421,60560.0,60559.0,0.001634]
[1728615233161,0.31072421,60560.0,60559.0,0.001634]
[1728615233373,0.31172421,60560.0,60559.0,0.001634]
[1728615234305,0.31072421,60560.0,60559.0,0.001634]
[1728615234528,0.31172421,60560.0,60559.0,0.001634]
[1728615234978,0.31072421,60560.0,60559.0,0.001634]
[1728615235639,0.30972421,60560.0,60559.0,0.001634]
[1728615236463,0.31072421,60560.0,60559.0,0.001634]
[1728615239549,0.30972421,60560.0,60559.0,0.001634]
[1728615239769,0.31072421,60560.0,60559.0,0.001634]
[1728615239991,0.31272421,60560.0,60559.0,0.001634]
[1728615240209,0.31172421,60560.0,60559.0,0.001634]
[1728615242053,0.30972421,60560.0,60559.0,0.001634]
[1728615242504,0.31172421,60560.0,60559.0,0.001634]
[1728615242769,0.30972421,60560.0,60559.0,0.001634]
[1728615243066,0.31672421,60560.0,60559.0,0.001634]
[1728615243311,0.01736228,60560.0,60559.0,0.001634]
[1728615243540,0.01936228,60560.0,60559.0,0.001634]
[1728615244222,0.16597428,60560.0,60559.0,0.001634]
[1728615244458,0.01736228,60560.0,60559.0,0.150249]
[1728615244923,0.007,60560.0,60559.0,0.150249]
[1728615245150,0.01717231,60560.0,60559.0,0.150249]
[1728615245385,0.148604,60564.0,60560.0,0.148611]
[1728615245874,0.297209,60564.0,60559.0,0.001634]
[1728615246099,0.148609,60562.0,60559.0,0.001634]
[1728615246576,0.001,60560.0,60559.0,0.001634]
[1728615246848,0.001,60560.0,60559.0,0.150249]
[1728615247093,0.148606,60563.0,60559.0,0.150249]
[1728615247561,0.001,60562.0,60559.0,0.150249]
[1728615247809,0.149608,60562.0,60559.0,0.001634]
[1728615248042,0.148611,60561.0,60559.0,0.001634]
[1728615248295,0.298218,60562.0,60559.0,0.001634]
[1728615248535,0.14861,60561.0,60559.0,0.001634]
[1728615248769,0.148612,60560.0,60559.0,0.001634]
[1728615250375,0.149612,60560.0,60559.0,0.001634]
[1728615250663,0.150612,60560.0,60559.0,0.001634]
[1728615251353,0.16082056,60560.0,60559.0,0.001634]
[1728615256544,0.15982056,60560.0,60559.0,0.001634]
[1728615256765,0.15882056,60560.0,60559.0,0.001634]
[1728615256960,0.15982056,60560.0,60559.0,0.001634]
[1728615257659,0.25052056,60560.0,60559.0,0.001634]
[1728615257897,0.33222056,60560.0,60559.0,0.001634]
[1728615258648,0.48323719,60560.0,60559.0,0.001634]